fUSD/lending_fUSD_20240501
["ID","MTS","AMOUNT","RATE_DAILY","PERIOD"]
[325156412,1714542662447,-203.84914673,0.00012132,2]
[325156413,1714542662456,-150.0,0.00012133,2]
[325156414,1714542662467,-150.0,0.00012134,2]
[325156415,1714542662477,-150.0,0.00012134,2]
[325156416,1714542662487,-150.0,0.0001214,2]
[325156417,1714542662497,-150.0,0.00012141,2]
[325156418,1714542662507,-150.0,0.00012143,2]
[325156419,1714542662517,-150.0,0.00012143,2]
[325156420,1714542662527,-150.0,0.00012143,2]
[325156421,1714542662536,-150.0,0.00012148,2]
[325156422,1714542662546,-151.0,0.0001215,2]
[325156423,1714542662556,-152.439238,0.0001215,2]
[325156424,1714542662566,-151.0,0.0001215,2]
[325156425,1714542662576,-151.0,0.0001215,2]
[325156426,1714542662586,-151.0,0.0001215,2]
[325156427,1714542662595,-151.0,0.0001215,2]
[325156428,1714542662605,-151.0,0.0001215,2]
[325156429,1714542662615,-151.0,0.0001215,2]
[325156430,1714542662624,-210.1284,0.0001215,2]
[325156431,1714542662634,-353.856056,0.0001215,2]
[325156432,1714542662645,-210.1284,0.0001215,2]
[325156433,1714542662655,-353.856056,0.0001215,2]
[325156434,1714542662664,-151.0,0.0001215,2]
[325156435,1714542662675,-260.832322,0.0001215,2]
[325156436,1714542662685,-151.0,0.0001215,2]
[325156437,1714542662695,-260.832322,0.0001215,2]
[325156438,1714542662705,-194.313902,0.0001215,2]
[325156439,1714542662715,-194.313902,0.0001215,2]
[325156440,1714542662724,-581.766893,0.0001215,2]
[325156441,1714542662734,-581.766893,0.0001215,2]
[325156442,1714542662744,-151.0,0.0001215,2]
[325156443,1714542662754,-154.670556,0.0001215,2]
[325156444,1714542662763,-151.0,0.0001215,2]
[325156445,1714542662773,-662.05595,0.0001215,2]
[325156446,1714542662782,-154.670556,0.0001215,2]
[325156447,1714542662792,-662.05595,0.0001215,2]
[325156448,1714542662801,-151.0,0.0001215,2]
[325156449,1714542662811,-151.0,0.0001215,2]
[325156450,1714542662821,-151.0,0.0001215,2]
[325156451,1714542662830,-151.0,0.0001215,2]
[325156452,1714542662844,-151.0,0.0001215,2]
[325156453,1714542662854,-151.0,0.0001215,2]
[325156454,1714542662864,-151.0,0.0001215,2]
[325156455,1714542662874,-151.0,0.0001215,2]
[325156456,1714542662883,-151.0,0.0001215,2]
[325156457,1714542662894,-151.0,0.0001215,2]
[325156458,1714542662904,-258.527001,0.0001215,2]
[325156459,1714542662913,-151.0,0.0001215,2]
[325156460,1714542662923,-151.0,0.0001215,2]
[325156461,1714542662933,-151.0,0.0001215,2]
[325156462,1714542662944,-669.191741,0.0001215,2]
[325156463,1714542662954,-669.191741,0.0001215,2]
[325156464,1714542662963,-10000.0,0.0001215,2]
[325156465,1714542662973,-2298.0,0.00012151,2]
[325156466,1714542662983,-462.0,0.00012151,2]
[325156467,1714542662992,-970.0,0.00012151,2]
[325156468,1714542663002,-1395.0,0.00012151,2]
[325156469,1714542663012,-1228.0,0.00012151,2]
[325156470,1714542663021,-1258.0,0.00012151,2]
[325156471,1714542663031,-542.0,0.00012151,2]
[325156472,1714542663041,-612.779,0.00012151,2]
[325156473,1714542663051,-437.0,0.00012151,2]
[325156474,1714542663060,-1861.0,0.00012151,2]
[325156475,1714542663070,-810.133,0.00012151,2]
[325156476,1714542663079,-309.331,0.00012151,2]
[325156477,1714542663089,-3133.0,0.00012151,2]
[325156478,1714542663099,-421.0,0.00012151,2]
[325156479,1714542663108,-2448.0,0.00012151,2]
[325156480,1714542663118,-1476.0,0.00012151,2]
[325156481,1714542663127,-150.0,0.00012151,2]
[325156482,1714542663137,-215.0,0.00012151,2]
[325156483,1714542663147,-1643.0,0.00012151,2]
[325156484,1714542663157,-444.0,0.00012151,2]
[325156485,1714542663167,-1139.0,0.00012151,2]
[325156486,1714542663177,-5899.0,0.00012151,2]
[325156487,1714542663187,-5737.0,0.00012151,2]
[325156488,1714542663196,-1536.347,0.00012151,2]
[325156489,1714542663206,-37744.0,0.00012151,2]
[325156490,1714542663220,-158.615,0.00012151,2]
[325156491,1714542663230,-1059.782,0.00012151,2]
[325156492,1714542663240,-150.0,0.00012151,2]
[325156493,1714542663249,-150.0,0.00012152,2]
[325156494,1714542663262,-150.0,0.00012154,2]
[325156495,1714542663272,-150.0,0.00012155,2]
[325156496,1714542663282,-150.0,0.00012156,2]
[325156497,1714542663296,-151.50674154,0.00012162,2]
[325156498,1714542663307,-150.0,0.00012164,2]
[325156499,1714542663316,-150.0,0.00012165,2]
[325156500,1714542663326,-150.0,0.00012167,2]
[325156501,1714542663447,-150.0,0.00012168,2]
[325156502,1714542663457,-150.0,0.00012168,2]
[325156503,1714542663466,-150.0,0.00012171,2]
[325156504,1714542663475,-150.0,0.00012177,2]
[325156505,1714542663485,-150.0,0.00012181,2]
[325156506,1714542663494,-150.0,0.0001219,2]
[325156507,1714542663503,-150.0,0.00012197,2]
[325156508,1714542663513,-150.0,0.00012205,2]
[325156509,1714542663523,-150.0,0.00012206,2]
[325156510,1714542663532,-150.0,0.00012211,2]
[325156511,1714542663541,-150.0,0.00012212,2]
[325156512,1714542663550,-150.0,0.00012213,2]
[325156513,1714542663560,-150.0,0.0001222,2]
[325156514,1714542663569,-150.0,0.00012223,2]
[325156515,1714542663579,-150.0,0.00012223,2]
[325156516,1714542663588,-150.0,0.00012225,2]
[325156517,1714542663597,-150.0,0.00012225,2]
[325156518,1714542663607,-150.0,0.00012227,2]
[325156519,1714542663616,-150.0,0.00012228,2]
[325156520,1714542663626,-150.0,0.00012233,2]
[325156521,1714542663635,-1000.0,0.00012234,2]
[325156522,1714542663644,-500.0,0.00012234,2]
[325156523,1714542663653,-150.0,0.00012235,2]
[325156524,1714542663663,-150.0,0.00012237,2]
[325156525,1714542663672,-150.0,0.00012238,2]
[325156526,1714542663682,-150.0,0.00012238,2]
[325156527,1714542663695,-150.0,0.00012239,2]
[325156528,1714542663705,-150.0,0.00012242,2]
[325156529,1714542663715,-150.0,0.00012243,2]
[325156530,1714542663724,-150.0,0.0001225,2]
[325156531,1714542663733,-150.0,0.00012251,2]
[325156532,1714542663743,-150.0,0.00012254,2]
[325156533,1714542663752,-150.0,0.00012254,2]
[325156534,1714542663761,-150.0,0.00012255,2]
[325156535,1714542663771,-150.0,0.00012258,2]
[325156536,1714542663780,-150.0,0.00012259,2]
[325156537,1714542663789,-150.0,0.0001226,2]
[325156538,1714542663799,-150.0,0.00012266,2]
[325156539,1714542663808,-150.0,0.00012266,2]
[325156540,1714542663817,-150.0,0.00012269,2]
[325156541,1714542663831,-150.0,0.00012272,2]
[325156542,1714542663841,-150.0,0.00012273,2]
[325156543,1714542663850,-150.0,0.00012275,2]
[325156544,1714542663859,-175.19768151,0.00012275,2]
[325156545,1714542663869,-150.0,0.0001228,2]
[325156546,1714542663878,-150.0,0.00012281,2]
[325156547,1714542663887,-150.0,0.00012282,2]
[325156548,1714542663896,-150.0,0.00012289,2]
[325156549,1714542663906,-174.17878913,0.0001229,2]
[325156550,1714542663916,-150.0,0.00012291,2]
[325156551,1714542663925,-150.0,0.00012291,2]
[325156552,1714542663934,-247.76,0.00012292,2]
[325156553,1714542663946,-150.0,0.00012298,2]
[325156554,1714542663955,-151.0,0.000123,2]
[325156555,1714542663967,-151.0,0.000123,2]
[325156556,1714542663976,-210.20781,0.000123,2]
[325156557,1714542663986,-337.179694,0.000123,2]
[325156558,1714542663995,-210.20781,0.000123,2]
[325156559,1714542664004,-337.179694,0.000123,2]
[325156560,1714542664013,-644.646043,0.000123,2]
[325156561,1714542664022,-644.646043,0.000123,2]
[325156562,1714542664031,-151.0,0.000123,2]
[325156563,1714542664041,-501.795764,0.000123,2]
[325156564,1714542664050,-151.0,0.000123,2]
[325156565,1714542664059,-501.795764,0.000123,2]
[325156566,1714542664068,-151.0,0.000123,2]
[325156567,1714542664078,-379.770739,0.000123,2]
[325156568,1714542664087,-379.770739,0.000123,2]
[325156569,1714542664096,-6600.0,0.000123,4]
[325156570,1714542664105,-150.0,0.00012301,2]
[325156571,1714542664114,-150.0,0.00012302,2]
[325156572,1714542664123,-155.89246652,0.00012304,2]
[325156573,1714542664133,-150.0,0.00012305,2]
[325156574,1714542664142,-150.0,0.00012311,2]
[325156575,1714542664151,-150.0,0.00012313,2]
[325156576,1714542664160,-150.0,0.00012315,2]
[325156577,1714542664169,-150.0,0.0001232,2]
[325156578,1714542664179,-1500.0,0.00012322,2]
[325156579,1714542664188,-1000.0,0.00012326,2]
[325156580,1714542664198,-151.0,0.00012326,2]
[325156581,1714542664209,-151.0,0.00012326,2]
[325156582,1714542664218,-151.0,0.00012326,2]
[325156583,1714542664227,-151.0,0.00012326,2]
[325156584,1714542664236,-451.786052,0.00012326,2]
[325156585,1714542664247,-451.786052,0.00012326,2]
[325156586,1714542664256,-206.808397,0.00012326,2]
[325156587,1714542664265,-306.772243,0.00012326,2]
[325156588,1714542664275,-306.772243,0.00012326,2]
[325156589,1714542664285,-151.0,0.00012326,2]
[325156590,1714542664296,-151.0,0.00012326,2]
[325156591,1714542664305,-151.0,0.00012326,2]
[325156592,1714542664314,-151.0,0.00012326,2]
[325156593,1714542664323,-150.0,0.00012327,2]
[325156594,1714542664332,-500.0,0.00012328,2]
[325156595,1714542664341,-500.0,0.00012328,2]
[325156596,1714542664350,-151.0,0.00012328,2]
[325156597,1714542664359,-151.0,0.00012328,2]
[325156598,1714542664368,-151.555678,0.00012328,2]
[325156599,1714542664377,-151.0,0.00012328,2]
[325156600,1714542664386,-151.0,0.00012328,2]
[325156601,1714542664395,-500.0,0.00012328,2]
[325156602,1714542664404,-500.0,0.00012328,2]
[325156603,1714542664414,-500.0,0.00012328,2]
[325156604,1714542664423,-500.0,0.00012328,2]
[325156605,1714542664432,-500.0,0.00012328,2]
[325156606,1714542664444,-158.306517,0.00012328,2]
[325156607,1714542664453,-158.306517,0.00012328,2]
[325156608,1714542664462,-151.0,0.00012328,2]
[325156609,1714542664471,-500.0,0.00012328,2]
[325156610,1714542664481,-185.72602704,0.00012328,2]
[325156611,1714542664491,-500.0,0.00012328,2]
[325156612,1714542664500,-151.0,0.00012328,2]
[325156613,1714542664510,-151.0,0.00012328,2]
[325156614,1714542664519,-151.0,0.00012328,2]
[325156615,1714542664528,-500.0,0.00012328,2]
[325156616,1714542664538,-621.54063754,0.00012328,2]
[325156617,1714542664549,-531.38691177,0.00012328,2]
[325156618,1714542664560,-232.67844113,0.00012328,2]
[325156619,1714542664570,-205.41256124,0.00012328,2]
[325156620,1714542664581,-1188.74,0.00012328,2]
[325156621,1714542664591,-500.0,0.00012328,2]
[325156622,1714542664600,-500.0,0.00012328,2]
[325156623,1714542664611,-500.0,0.00012328,2]
[325156624,1714542664622,-500.0,0.00012328,2]
[325156625,1714542664631,-500.0,0.00012328,2]
[325156626,1714542664640,-500.0,0.00012328,2]
[325156627,1714542664650,-500.0,0.00012328,2]
[325156628,1714542664660,-500.0,0.00012328,2]
[325156629,1714542664669,-500.0,0.00012328,2]
[325156630,1714542664679,-500.0,0.00012328,2]
[325156631,1714542664688,-500.0,0.00012328,2]
[325156632,1714542664699,-500.0,0.00012328,2]
[325156633,1714542664709,-669.77,0.00012328,2]
[325156634,1714542664720,-1625.73,0.00012328,2]
[325156635,1714542664730,-151.0,0.00012328,2]
[325156636,1714542664740,-500.0,0.00012328,2]
[325156637,1714542664751,-151.0,0.00012328,2]
[325156638,1714542664761,-500.0,0.00012328,2]
[325156639,1714542664770,-500.0,0.00012328,2]
[325156640,1714542664779,-500.0,0.00012328,2]
[325156641,1714542664788,-584.18,0.00012328,2]
[325156642,1714542664798,-500.0,0.00012328,2]
[325156643,1714542664809,-500.0,0.00012328,2]
[325156644,1714542664818,-571.47,0.00012328,2]
[325156645,1714542664828,-500.0,0.00012328,2]
[325156646,1714542664837,-151.0,0.00012328,2]
[325156647,1714542664847,-151.0,0.00012328,2]
[325156648,1714542664856,-500.0,0.00012328,2]
[325156649,1714542664865,-151.0,0.00012328,2]
[325156650,1714542664875,-500.0,0.00012328,2]
[325156651,1714542664884,-500.0,0.00012328,2]
[325156652,1714542664893,-586.79,0.00012328,2]
[325156653,1714542664903,-500.0,0.00012328,2]
[325156654,1714542664912,-500.0,0.00012328,2]
[325156655,1714542664920,-500.0,0.00012328,2]
[325156656,1714542664929,-150.0,0.00012328,2]
[325156657,1714542664939,-500.0,0.00012328,2]
[325156658,1714542664949,-500.0,0.00012328,2]
[325156659,1714542664959,-500.0,0.00012328,2]
[325156660,1714542664970,-500.0,0.00012328,2]
[325156661,1714542664979,-500.0,0.00012328,2]
[325156662,1714542664990,-500.0,0.00012328,2]
[325156663,1714542665001,-236.42036126,0.00012328,2]
[325156664,1714542665011,-500.0,0.00012328,2]
[325156665,1714542665020,-523.11851132,0.00012328,2]
[325156666,1714542665030,-316.61012768,0.00012328,2]
[325156667,1714542665039,-500.0,0.00012328,2]
[325156668,1714542665049,-716.58,0.00012328,2]
[325156669,1714542665059,-500.0,0.00012328,2]
[325156670,1714542665068,-500.0,0.00012328,2]
[325156671,1714542665078,-500.0,0.00012328,2]
[325156672,1714542665088,-500.0,0.00012328,2]
[325156673,1714542665099,-500.0,0.00012328,2]
[325156674,1714542665109,-500.0,0.00012328,2]
[325156675,1714542665119,-500.0,0.00012328,2]
[325156676,1714542665129,-500.0,0.00012328,2]
[325156677,1714542665139,-500.0,0.00012328,2]
[325156678,1714542665148,-500.0,0.00012328,2]
[325156679,1714542665158,-500.0,0.00012328,2]
[325156680,1714542665167,-500.0,0.00012328,2]
[325156681,1714542665179,-500.0,0.00012328,2]
[325156682,1714542665190,-328.34346812,0.00012328,2]
[325156683,1714542665199,-500.0,0.00012328,2]
[325156684,1714542665210,-194.52794476,0.00012328,2]
[325156685,1714542665225,-500.0,0.00012328,2]
[325156686,1714542665234,-500.0,0.00012328,2]
[325156687,1714542665244,-500.0,0.00012328,2]
[325156688,1714542665255,-177.6027181,0.00012328,2]
[325156689,1714542665264,-500.0,0.00012328,2]
[325156690,1714542665274,-500.0,0.00012328,2]
[325156691,1714542665284,-500.0,0.00012328,2]
[325156692,1714542665295,-500.0,0.00012328,2]
[325156693,1714542665305,-704.22,0.00012328,2]
[325156694,1714542665315,-500.0,0.00012328,2]
[325156695,1714542665325,-500.0,0.00012328,2]
[325156696,1714542665335,-500.0,0.00012328,2]
[325156697,1714542665345,-483.35559026,0.00012328,2]
[325156698,1714542665355,-500.0,0.00012328,2]
[325156699,1714542665365,-1776.56,0.00012328,2]
[325156700,1714542665375,-500.0,0.00012328,2]
[325156701,1714542665385,-500.0,0.00012328,2]
[325156702,1714542665396,-500.0,0.00012328,2]
[325156703,1714542665407,-493.22876532,0.00012328,2]
[325156704,1714542665418,-500.0,0.00012328,2]
[325156705,1714542665428,-686.3,0.00012328,2]
[325156706,1714542665440,-500.0,0.00012328,2]
[325156707,1714542665450,-500.0,0.00012328,2]
[325156708,1714542665459,-500.0,0.00012328,2]
[325156709,1714542665469,-500.0,0.00012328,2]
[325156710,1714542665479,-626.52,0.00012328,2]
[325156711,1714542665489,-1184.92,0.00012328,2]
[325156712,1714542665498,-500.0,0.00012328,2]
[325156713,1714542665508,-699.23,0.00012328,2]
[325156714,1714542665517,-500.0,0.00012328,2]
[325156715,1714542665527,-500.0,0.00012328,2]
[325156716,1714542665537,-500.0,0.00012328,2]
[325156717,1714542665548,-500.0,0.00012328,2]
[325156718,1714542665557,-500.0,0.00012328,2]
[325156719,1714542665567,-7170.82,0.00012328,2]
[325156720,1714542665577,-589.48,0.00012328,2]
[325156721,1714542665587,-500.0,0.00012328,2]
[325156722,1714542665597,-625.52,0.00012328,2]
[325156723,1714542665607,-643.14,0.00012328,2]
[325156724,1714542665618,-809.92,0.00012328,2]
[325156725,1714542665628,-500.0,0.00012328,2]
[325156726,1714542665638,-500.0,0.00012328,2]
[325156727,1714542665648,-697.39,0.00012328,2]
[325156728,1714542665658,-1650.0,0.00012328,2]
[325156729,1714542665668,-7789.17,0.00012328,2]
[325156730,1714542665678,-500.0,0.00012328,2]
[325156731,1714542665689,-500.0,0.00012328,2]
[325156732,1714542665699,-3346.94,0.00012328,2]
[325156733,1714542665709,-500.0,0.00012328,2]
[325156734,1714542665720,-585.15,0.00012328,2]
[325156735,1714542665730,-724.59,0.00012328,2]
[325156736,1714542665740,-549.53,0.00012328,2]
[325156737,1714542665750,-458.69663435,0.00012328,2]
[325156738,1714542665760,-500.0,0.00012328,2]
[325156739,1714542665770,-711.11,0.00012328,2]
[325156740,1714542665781,-1021.06,0.00012328,2]
[325156741,1714542665791,-500.0,0.00012328,2]
[325156742,1714542665802,-1018.7,0.00012328,2]
[325156743,1714542665812,-3038.17,0.00012328,2]
[325156744,1714542665822,-500.0,0.00012328,2]
[325156745,1714542665832,-500.0,0.00012328,2]
[325156746,1714542665842,-500.0,0.00012328,2]
[325156747,1714542665852,-591.4,0.00012328,2]
[325156748,1714542665863,-1962.87,0.00012328,2]
[325156749,1714542665873,-500.0,0.00012328,2]
[325156750,1714542665883,-1298.52,0.00012328,2]
[325156751,1714542665893,-1337.7,0.00012328,2]
[325156752,1714542665903,-500.0,0.00012328,2]
[325156753,1714542665913,-500.0,0.00012328,2]
[325156754,1714542665923,-500.0,0.00012328,2]
[325156755,1714542665933,-1264.24,0.00012328,2]
[325156756,1714542665947,-1069.93,0.00012328,2]
[325156757,1714542665958,-500.0,0.00012328,2]
[325156758,1714542665967,-582.27,0.00012328,2]
[325156759,1714542665977,-500.0,0.00012328,2]
[325156760,1714542665987,-500.0,0.00012328,2]
[325156761,1714542665997,-710.13,0.00012328,2]
[325156762,1714542666007,-500.0,0.00012328,2]
[325156763,1714542666017,-500.0,0.00012328,2]
[325156764,1714542666027,-500.0,0.00012328,2]
[325156765,1714542666036,-500.0,0.00012328,2]
[325156766,1714542666046,-690.32,0.00012328,2]
[325156767,1714542666056,-738.69,0.00012328,2]
[325156768,1714542666066,-500.0,0.00012328,2]
[325156769,1714542666076,-500.0,0.00012328,2]
[325156770,1714542666087,-500.0,0.00012328,2]
[325156771,1714542666097,-500.0,0.00012328,2]
[325156772,1714542666107,-500.0,0.00012328,2]
[325156773,1714542666117,-500.0,0.00012328,2]
[325156774,1714542666127,-2161.38,0.00012328,2]
[325156775,1714542666137,-966.37,0.00012328,2]
[325156776,1714542666146,-4905.9,0.00012328,2]
[325156777,1714542666156,-500.0,0.00012328,2]
[325156778,1714542666166,-1948.4,0.00012328,2]
[325156779,1714542666176,-759.28,0.00012328,2]
[325156780,1714542666185,-500.0,0.00012328,2]
[325156781,1714542666196,-1275.71,0.00012328,2]
[325156782,1714542666209,-500.0,0.00012328,2]
[325156783,1714542666220,-508.3355618,0.00012328,2]
[325156784,1714542666230,-758.67,0.00012328,2]
[325156785,1714542666240,-500.0,0.00012328,2]
[325156786,1714542666251,-886.96,0.00012328,2]
[325156787,1714542666262,-500.0,0.00012328,2]
[325156788,1714542666272,-500.0,0.00012328,2]
[325156789,1714542666282,-2677.35,0.00012328,2]
[325156790,1714542666294,-500.0,0.00012328,2]
[325156791,1714542666304,-500.0,0.00012328,2]
[325156792,1714542666314,-1235.88,0.00012328,2]
[325156793,1714542666324,-500.0,0.00012328,2]
[325156794,1714542666334,-866.09,0.00012328,2]
[325156795,1714542666344,-500.0,0.00012328,2]
[325156796,1714542666354,-500.0,0.00012328,2]
[325156797,1714542666364,-1072.35,0.00012328,2]
[325156798,1714542666375,-1288.28,0.00012328,2]
[325156799,1714542666385,-500.0,0.00012328,2]
[325156800,1714542666395,-3316.24,0.00012328,2]
[325156801,1714542666405,-1241.61,0.00012328,2]
[325156802,1714542666416,-500.0,0.00012328,2]
[325156803,1714542666426,-500.0,0.00012328,2]
[325156804,1714542666438,-500.0,0.00012328,2]
[325156805,1714542666449,-500.0,0.00012328,2]
[325156806,1714542666461,-2504.85,0.00012328,2]
[325156807,1714542666472,-500.0,0.00012328,2]
[325156808,1714542666483,-500.0,0.00012328,2]
[325156809,1714542666494,-810.87,0.00012328,2]
[325156810,1714542666504,-500.0,0.00012328,2]
[325156811,1714542666516,-500.0,0.00012328,2]
[325156812,1714542666526,-507.55,0.00012328,2]
[325156813,1714542666537,-870.27,0.00012328,2]
[325156814,1714542666549,-3432.19,0.00012328,2]
[325156815,1714542666559,-500.0,0.00012328,2]
[325156816,1714542666571,-1019.03,0.00012328,2]
[325156817,1714542666582,-935.9,0.00012328,2]
[325156818,1714542666593,-563.78,0.00012328,2]
[325156819,1714542666604,-2956.33,0.00012328,2]
[325156820,1714542666615,-1026.81,0.00012328,2]
[325156821,1714542666626,-3294.14,0.00012328,2]
[325156822,1714542666637,-500.0,0.00012328,2]
[325156823,1714542666648,-500.0,0.00012328,2]
[325156824,1714542666659,-500.0,0.00012328,2]
[325156825,1714542666670,-1610.66,0.00012328,2]
[325156826,1714542666681,-500.0,0.00012328,2]
[325156827,1714542666694,-500.0,0.00012328,2]
[325156828,1714542666705,-1323.01,0.00012328,2]
[325156829,1714542666716,-6150.44,0.00012328,2]
[325156830,1714542666727,-1965.64,0.00012328,2]
[325156831,1714542666738,-500.0,0.00012328,2]
[325156832,1714542666749,-500.0,0.00012328,2]
[325156833,1714542666760,-500.0,0.00012328,2]
[325156834,1714542666770,-500.34,0.00012328,2]
[325156835,1714542666781,-11884.42,0.00012328,2]
[325156836,1714542666792,-500.0,0.00012328,2]
[325156837,1714542666803,-1478.72,0.00012328,2]
[325156838,1714542666814,-1095.18,0.00012328,2]
[325156839,1714542666825,-12067.93,0.00012328,2]
[325156840,1714542666838,-1361.3,0.00012328,2]
[325156841,1714542666848,-500.0,0.00012328,2]
[325156842,1714542666864,-500.0,0.00012328,2]
[325156843,1714542666875,-671.59,0.00012328,2]
[325156844,1714542666887,-803.19,0.00012328,2]
[325156845,1714542666898,-510.64,0.00012328,2]
[325156846,1714542666909,-1131.44,0.00012328,2]
[325156847,1714542666920,-5313.27,0.00012328,2]
[325156848,1714542666930,-1967.48,0.00012328,2]
[325156849,1714542666947,-741.95,0.00012328,2]
[325156850,1714542666958,-500.0,0.00012328,2]
[325156851,1714542666967,-500.0,0.00012328,2]
[325156852,1714542666977,-439.85130615,0.00012328,2]
[325156853,1714542666987,-12501.05,0.00012328,2]
[325156854,1714542667001,-500.0,0.00012328,2]
[325156855,1714542667012,-157.46439481,0.00012328,2]
[325156856,1714542667023,-150.0,0.0001233,2]
[325156857,1714542667034,-150.0,0.00012331,2]
[325156858,1714542667045,-150.0,0.00012334,2]
[325156859,1714542667054,-150.0,0.00012337,2]
[325156860,1714542667077,-150.0,0.00012338,2]
[325156861,1714542667097,-150.0,0.0001234,2]
[325156862,1714542667107,-150.0,0.00012347,2]
[325156863,1714542667117,-150.0,0.00012352,2]
[325156864,1714542667128,-346.76334279,0.00012358,2]
[325156865,1714542667151,-1000.0,0.00012367,2]
[325156866,1714542667161,-150.0,0.00012384,2]
[325156867,1714542667172,-150.01,0.00012399,2]
[325156868,1714542667182,-5852.08008115,0.00012399,2]
[325156869,1714542667194,-150.0,0.00012399,2]
[325156870,1714542667206,-1300.0,0.000124,4]
[325156871,1714542667215,-1688.20878044,0.00012475,2]
[325156872,1714542667239,-379.69,0.00012489,2]
[325156873,1714542667258,-1000.0,0.000125,5]
[325156874,1714542667271,-1300.0,0.000125,4]
[325156875,1714542667282,-1000.0,0.000125,2]
[325156876,1714542667452,-500.0,0.000125,2]
[325156877,1714542667462,-155.78528381,0.0001251,2]
[325156878,1714542667472,-151.50674154,0.00012542,2]
[325156879,1714542667482,-9264.7435577,0.00012591,2]
[325156880,1714542667491,-931.0623425,0.00012591,2]
[325156881,1714542667500,-174.02390322,0.00012591,2]
[325156882,1714542667510,-151.0,0.00012591,2]
[325156883,1714542667519,-154.670556,0.00012591,2]
[325156884,1714542667528,-151.0,0.00012591,2]
[325156885,1714542667537,-662.05595,0.00012591,2]
[325156886,1714542667547,-154.670556,0.00012591,2]
[325156887,1714542667556,-662.05595,0.00012591,2]
[325156888,1714542667565,-151.0,0.00012591,2]
[325156889,1714542667574,-151.0,0.00012591,2]
[325156890,1714542667584,-151.0,0.00012591,2]
[325156891,1714542667594,-151.0,0.00012591,2]
[325156892,1714542667604,-151.0,0.00012591,2]
[325156893,1714542667613,-151.0,0.00012591,2]
[325156894,1714542667623,-151.0,0.00012591,2]
[325156895,1714542667632,-151.0,0.00012591,2]
[325156896,1714542667642,-151.0,0.00012591,2]
[325156897,1714542667651,-151.0,0.00012591,2]
[325156898,1714542667660,-37976.2047596,0.00012591,2]
[325156899,1714542667670,-151.0,0.00012591,2]
[325156900,1714542667679,-151.0,0.00012591,2]
[325156901,1714542667690,-151.0,0.00012591,2]
[325156902,1714542667699,-669.191741,0.00012591,2]
[325156903,1714542667709,-669.191741,0.00012591,2]
[325156904,1714542667719,-200.05219972,0.000126,2]
[325156905,1714542667728,-158.6662864,0.000126,2]
[325156906,1714542667737,-155.0,0.000126,2]
[325156907,1714542667747,-186.95154128,0.000126,2]
[325156908,1714542667756,-210.1284,0.000126,2]
[325156909,1714542667766,-210.1284,0.000126,2]
[325156910,1714542667775,-1300.0,0.000126,4]
[325156911,1714542667785,-151.0,0.000126,2]